fUSD/lending_fUSD_20260620
["ID","MTS","AMOUNT","RATE_DAILY","PERIOD"]
[425805683,1781914242000,-163.39,0.00029383,7]
[425805680,1781914242000,-402.47050455,0.00029361,2]
[425805709,1781914242000,-156.0,0.00029921,30]
[425805710,1781914242000,-201.0,0.00029921,30]
[425805704,1781914242000,-384.0,0.00029921,30]
[425805712,1781914242000,-1142.16,0.00029937,2]
[425805713,1781914242000,-1000.0,0.00029937,2]
[425805714,1781914242000,-1783.12,0.00029937,2]
[425805715,1781914242000,-187.78006524,0.00029962,2]
[425805718,1781914242000,-151.0,0.00029962,2]
[425805716,1781914242000,-151.0,0.00029962,2]
[425805719,1781914242000,-381.80942428,0.00029962,2]
[425805717,1781914242000,-225.18697532,0.00029962,2]
[425805721,1781914242000,-470.0,0.000301,7]
[425805723,1781914242000,-500.0,0.00030129,30]
[425805725,1781914242000,-500.0,0.00030129,30]
[425805724,1781914242000,-500.0,0.00030129,30]
[425805728,1781914242000,-500.0,0.00030129,30]
[425805726,1781914242000,-151.0,0.00030129,7]
[425805722,1781914242000,-500.0,0.00030129,2]
[425805727,1781914242000,-500.0,0.00030129,2]
[425805730,1781914242000,-519.01954751,0.00030135,2]
[425805682,1781914242000,-151.0,0.00029361,7]
[425805708,1781914242000,-167.0,0.00029921,30]
[425805707,1781914242000,-152.0,0.00029921,30]
[425805720,1781914242000,-168.0,0.00030037,2]
[425805705,1781914242000,-156.0,0.00029921,30]
[425805685,1781914242000,-151.0,0.00029414,2]
[425805711,1781914242000,-713.24,0.00029937,2]
[425805689,1781914242000,-402.47050473,0.00029416,2]
[425805686,1781914242000,-217.15233878,0.00029414,2]
[425805687,1781914242000,-151.0,0.00029414,2]
[425805688,1781914242000,-381.80942428,0.00029414,2]
[425805690,1781914242000,-151.0,0.00029416,2]
[425805691,1781914242000,-633.49537877,0.00029426,2]
[425805692,1781914242000,-150.0,0.00029534,2]
[425805693,1781914242000,-500.0,0.0002955,18]
[425805694,1781914242000,-200.0,0.00029628,2]
[425805684,1781914242000,-181.08010149,0.00029414,2]
[425805703,1781914242000,-244.0,0.00029921,30]
[425805695,1781914242000,-160.56,0.00029634,2]
[425805697,1781914242000,-151.0,0.00029688,2]
[425805698,1781914242000,-503.61926741,0.00029699,2]
[425805699,1781914242000,-3186.72781983,0.00029844,2]
[425805702,1781914242000,-152.0,0.00029921,30]
[425805700,1781914242000,-160.0,0.00029921,30]
[425805701,1781914242000,-152.0,0.00029921,30]
[425805696,1781914242000,-160.58,0.00029634,2]
[425805706,1781914242000,-175.0,0.00029921,30]
[425805768,1781914243000,-664.82,0.000308,30]
[425805770,1781914243000,-196.02549322,0.000308,2]
[425805771,1781914243000,-166.54877769,0.00030849,2]
[425805769,1781914243000,-2000.0,0.000308,2]
[425805762,1781914243000,-560.2527,0.00030527,2]
[425805764,1781914243000,-3142.0,0.0003078,5]
[425805761,1781914243000,-381.80942428,0.0003051,2]
[425805775,1781914243000,-6081.0,0.00030849,2]
[425805767,1781914243000,-152.0,0.00030791,7]
[425805772,1781914243000,-1229.0,0.00030849,2]
[425805787,1781914243000,-200.0,0.0003095,2]
[425805773,1781914243000,-1215.0,0.00030849,2]
[425805774,1781914243000,-3656.615,0.00030849,2]
[425805777,1781914243000,-152.0,0.00030921,30]
[425805779,1781914243000,-244.0,0.00030921,30]
[425805780,1781914243000,-384.0,0.00030921,30]
[425805782,1781914243000,-175.0,0.00030921,30]
[425805778,1781914243000,-152.0,0.00030921,30]
[425805783,1781914243000,-152.0,0.00030921,30]
[425805781,1781914243000,-156.0,0.00030921,30]
[425805766,1781914243000,-151.0,0.00030784,2]
[425805776,1781914243000,-160.0,0.00030921,30]
[425805763,1781914243000,-2917.0,0.0003078,5]
[425805734,1781914243000,-163.39,0.00030136,2]
[425805760,1781914243000,-151.0,0.0003051,2]
[425805732,1781914243000,-6085.952,0.00030136,25]
[425805733,1781914243000,-168.691,0.00030136,25]
[425805745,1781914243000,-226.0,0.00030202,5]
[425805747,1781914243000,-151.0,0.00030236,2]
[425805744,1781914243000,-500.0,0.00030143,7]
[425805735,1781914243000,-150.0,0.00030137,2]
[425805736,1781914243000,-302.07247059,0.00030137,2]
[425805743,1781914243000,-1545.92,0.00030137,120]
[425805741,1781914243000,-500.0,0.00030137,3]
[425805738,1781914243000,-188.63223808,0.00030137,30]
[425805765,1781914243000,-449.73610625,0.00030781,7]
[425805748,1781914243000,-151.0,0.00030239,2]
[425805753,1781914243000,-319.0,0.00030413,30]
[425805749,1781914243000,-200.0,0.00030289,2]
[425805751,1781914243000,-160.0722,0.00030312,2]
[425805755,1781914243000,-2000.0,0.000305,2]
[425805754,1781914243000,-500.0,0.00030436,20]
[425805752,1781914243000,-344.07,0.00030347,120]
[425805784,1781914243000,-167.0,0.00030921,30]
[425805759,1781914243000,-233.5188934,0.0003051,2]
[425805757,1781914243000,-194.72792766,0.0003051,2]
[425805758,1781914243000,-151.0,0.0003051,2]
[425805750,1781914243000,-273.0,0.00030292,2]
[425805786,1781914243000,-201.0,0.00030921,30]
[425805756,1781914243000,-170.40963289,0.00030509,2]
[425805798,1781914243000,-310.0,0.000311,2]
[425805815,1781914243000,-500.84,0.00031353,60]
[425805818,1781914243000,-500.84,0.00031353,60]
[425805820,1781914243000,-500.84,0.00031353,60]
[425805819,1781914243000,-500.84,0.00031353,60]
[425805826,1781914243000,-276.50678003,0.00031504,2]
[425805827,1781914243000,-519.01954751,0.00031504,2]
[425805830,1781914243000,-300.0,0.00031539,10]
[425805829,1781914243000,-608.8849725,0.00031526,2]
[425805828,1781914243000,-150.0,0.00031507,2]
[425805822,1781914243000,-500.84,0.00031353,60]
[425805814,1781914243000,-500.84,0.00031353,60]
[425805824,1781914243000,-1013.34693562,0.00031457,2]
[425805825,1781914243000,-9900.8875111,0.00031461,2]
[425805831,1781914243000,-595115.73229841,0.0003154,2]
[425805832,1781914243000,-384.502733,0.0003154,7]
[425805833,1781914243000,-384.502733,0.0003154,7]
[425805834,1781914243000,-384.502733,0.0003154,7]
[425805835,1781914243000,-384.502733,0.0003154,7]
[425805838,1781914243000,-747.80937859,0.00031605,2]
[425805836,1781914243000,-151.0,0.0003154,7]
[425805837,1781914243000,-599.60298507,0.00031605,2]
[425805785,1781914243000,-156.0,0.00030921,30]
[425805821,1781914243000,-500.84,0.00031353,60]
[425805813,1781914243000,-500.84,0.00031353,60]
[425805823,1781914243000,-2000.0,0.000314,2]
[425805817,1781914243000,-500.84,0.00031353,60]
[425805816,1781914243000,-500.84,0.00031353,60]
[425805788,1781914243000,-1545.92,0.00030959,120]
[425805789,1781914243000,-1187.81567942,0.0003099,2]
[425805790,1781914243000,-150.0,0.00031011,2]
[425805791,1781914243000,-201.93286098,0.00031058,2]
[425805792,1781914243000,-151.0,0.00031058,2]
[425805795,1781914243000,-381.80942428,0.00031058,2]
[425805793,1781914243000,-315.77328749,0.00031058,2]
[425805794,1781914243000,-151.0,0.00031058,2]
[425805796,1781914243000,-2000.0,0.000311,2]
[425805800,1781914243000,-1000.0,0.000312,7]
[425805797,1781914243000,-316.0,0.000311,2]
[425805811,1781914243000,-500.84,0.00031353,60]
[425805808,1781914243000,-500.84,0.00031353,60]
[425805810,1781914243000,-500.84,0.00031353,60]
[425805802,1781914243000,-151.0,0.00031332,2]
[425805807,1781914243000,-500.84,0.00031353,60]
[425805805,1781914243000,-500.84,0.00031353,60]
[425805803,1781914243000,-500.0,0.00031349,22]
[425805806,1781914243000,-500.84,0.00031353,60]
[425805804,1781914243000,-500.84,0.00031353,60]
[425805809,1781914243000,-500.84,0.00031353,60]
[425805812,1781914243000,-500.84,0.00031353,60]
[425805875,1781914244000,-350.0,0.00031965,2]
[425805873,1781914244000,-201.0,0.00031921,30]
[425805874,1781914244000,-1001.0,0.00031945,120]
[425805867,1781914244000,-384.0,0.00031921,30]
[425805872,1781914244000,-160.91280991,0.00031921,30]
[425805870,1781914244000,-152.0,0.00031921,30]
[425805865,1781914244000,-152.0,0.00031921,30]
[425805862,1781914244000,-1360.0,0.00031903,2]
[425805881,1781914244000,-185.14,0.00032099,2]
[425805879,1781914244000,-481.43,0.00032099,2]
[425805882,1781914244000,-217.15233878,0.00032154,2]
[425805883,1781914244000,-151.0,0.00032154,2]
[425805866,1781914244000,-244.0,0.00031921,30]
[425805880,1781914244000,-482.37,0.00032099,2]
[425805871,1781914244000,-167.0,0.00031921,30]
[425805869,1781914244000,-175.0,0.00031921,30]
[425805892,1781914244000,-1418.0,0.0003224,2]
[425805884,1781914244000,-381.80942428,0.00032154,2]
[425805886,1781914244000,-185.12,0.00032169,2]
[425805885,1781914244000,-1711.0,0.00032166,10]
[425805888,1781914244000,-350.0,0.00032202,2]
[425805887,1781914244000,-8453.7327669,0.00032171,2]
[425805863,1781914244000,-160.0,0.00031921,30]
[425805864,1781914244000,-159.0,0.00031921,30]
[425805878,1781914244000,-573.56,0.00032093,2]
[425805840,1781914244000,-151.0,0.00031606,2]
[425805876,1781914244000,-5796.79864298,0.00032,3]
[425805841,1781914244000,-151.0,0.00031606,2]
[425805889,1781914244000,-18219.84935386,0.00032204,2]
[425805839,1781914244000,-209.40437684,0.00031606,2]
[425805848,1781914244000,-357.339598,0.00031784,2]
[425805845,1781914244000,-500.0,0.00031619,60]
[425805844,1781914244000,-190.14831548,0.00031619,60]
[425805847,1781914244000,-1545.92,0.00031781,120]
[425805842,1781914244000,-381.80942428,0.00031606,2]
[425805846,1781914244000,-2000.0,0.000317,2]
[425805843,1781914244000,-200.0,0.00031611,2]
[425805849,1781914244000,-185.82,0.00031843,10]
[425805877,1781914244000,-152.0,0.00032078,7]
[425805850,1781914244000,-150.0,0.00031903,2]
[425805861,1781914244000,-383.0,0.00031903,2]
[425805853,1781914244000,-167.235,0.00031903,2]
[425805852,1781914244000,-150.0,0.00031903,2]
[425805858,1781914244000,-150.0,0.00031903,2]
[425805856,1781914244000,-150.0,0.00031903,2]
[425805857,1781914244000,-150.0,0.00031903,2]
[425805855,1781914244000,-150.0,0.00031903,2]
[425805854,1781914244000,-150.0,0.00031903,2]
[425805860,1781914244000,-1276.0,0.00031903,2]
[425805859,1781914244000,-3560.0,0.00031903,2]
[425805868,1781914244000,-156.0,0.00031921,30]
[425805851,1781914244000,-150.0,0.00031903,2]
[425805890,1781914244000,-151.0,0.0003221,5]
[425805899,1781914244000,-192.40811587,0.00032405,2]
[425805894,1781914244000,-200.0,0.00032272,2]
[425805924,1781914244000,-5000.0,0.000328,11]
[425805925,1781914244000,-9990.94327511,0.00032868,2]
[425805922,1781914244000,-500.0,0.0003279,30]
[425805926,1781914244000,-3000.0,0.00032868,3]
[425805923,1781914244000,-167.45969096,0.000328,2]
[425805928,1781914244000,-500.0,0.00032876,120]
[425805930,1781914244000,-150.0,0.00032876,2]
[425805931,1781914244000,-151.0,0.00032877,7]
[425805935,1781914244000,-6200.0,0.000329,12]
[425805933,1781914244000,-2870.72914096,0.00032878,7]
[425805929,1781914244000,-500.0,0.00032876,120]
[425805918,1781914244000,-381.80942428,0.00032702,2]
[425805934,1781914244000,-296.09495295,0.000329,2]
[425805932,1781914244000,-151.0,0.00032877,7]
[425805936,1781914244000,-474.6405742,0.000329,2]
[425805939,1781914244000,-176.14364569,0.00032915,2]
[425805891,1781914244000,-286.0,0.0003224,2]
[425805941,1781914244000,-482.37,0.00032915,2]
[425805943,1781914244000,-185.19,0.00032915,2]
[425805944,1781914244000,-396.25,0.00032918,2]
[425805940,1781914244000,-482.37,0.00032915,2]
[425805942,1781914244000,-482.4,0.00032915,2]
[425805945,1781914244000,-1520.53530786,0.0003292,2]
[425805946,1781914244000,-160.0,0.00032921,30]
[425805937,1781914244000,-194.64603169,0.000329,2]
[425805921,1781914244000,-500.0,0.0003279,2]
[425805938,1781914244000,-166.48403506,0.00032915,2]
[425805919,1781914244000,-972.4798767,0.00032702,2]
[425805920,1781914244000,-500.0,0.0003279,30]
[425805893,1781914244000,-355.0,0.0003224,2]
[425805896,1781914244000,-500.0,0.0003229,24]
[425805897,1781914244000,-913.04816818,0.000323,2]
[425805895,1781914244000,-171.30093727,0.00032277,30]
[425805903,1781914244000,-173.55021844,0.00032407,2]
[425805901,1781914244000,-163.36933157,0.00032407,2]
[425805900,1781914244000,-156.89671053,0.00032406,2]
[425805902,1781914244000,-175.74296698,0.00032407,2]
[425805908,1781914244000,-154.13578972,0.00032411,2]
[425805914,1781914244000,-1000.0,0.00032674,30]
[425805909,1781914244000,-167.77081282,0.00032411,2]
[425805898,1781914244000,-350.0,0.00032348,2]
[425805913,1781914244000,-1545.92,0.00032603,120]
[425805910,1781914244000,-1112.51055122,0.0003246,4]
[425805927,1781914244000,-519.01954751,0.00032873,2]
[425805917,1781914244000,-151.0,0.00032702,2]
[425805916,1781914244000,-225.18697532,0.00032702,2]
[425805911,1781914244000,-150.0,0.00032562,2]
[425805912,1781914244000,-152.0,0.00032583,120]
[425805907,1781914244000,-169.30217305,0.00032411,2]
[425805905,1781914244000,-174.36250031,0.00032407,2]
[425805906,1781914244000,-175.94599016,0.00032407,2]
[425805904,1781914244000,-163.70074597,0.00032407,2]
[425805915,1781914244000,-1187.81567942,0.00032681,2]
[425805967,1781914245000,-300.0,0.00032999,10]
[425805968,1781914245000,-300.0,0.00032999,10]
[425805972,1781914245000,-500.0,0.00032999,7]
[425805970,1781914245000,-500.0,0.00032999,7]
[425805971,1781914245000,-500.0,0.00032999,7]
[425805974,1781914245000,-225.391389,0.00032999,30]
[425805977,1781914245000,-22499.99,0.00033,2]
[425805984,1781914245000,-22500.0,0.00033,2]
[425805976,1781914245000,-1000.0,0.00033,40]
[425805979,1781914245000,-12500.0,0.00033,2]
[425805980,1781914245000,-22499.98,0.00033,2]
[425805978,1781914245000,-15000.0,0.00033,2]
[425805981,1781914245000,-15000.0,0.00033,2]
[425805975,1781914245000,-4877.91598071,0.00033,2]
[425805983,1781914245000,-10000.0,0.00033,2]
[425805962,1781914245000,-500.0,0.00032999,30]
[425805982,1781914245000,-4159.74,0.00033,2]
[425805973,1781914245000,-307.29468666,0.00032999,10]
[425805952,1781914245000,-152.0,0.00032921,30]
[425805964,1781914245000,-500.0,0.00032999,120]
[425805985,1781914245000,-15000.0,0.00033,2]
[425805949,1781914245000,-384.0,0.00032921,30]
[425805947,1781914245000,-152.0,0.00032921,30]
[425805950,1781914245000,-156.0,0.00032921,30]
[425805948,1781914245000,-244.0,0.00032921,30]
[425805951,1781914245000,-175.0,0.00032921,30]
[425805953,1781914245000,-167.0,0.00032921,30]
[425805954,1781914245000,-201.0,0.00032921,30]
[425805955,1781914245000,-200.0,0.00032933,10]
[425805956,1781914245000,-390.0,0.00032946,2]
[425805957,1781914245000,-1855.99656491,0.00032958,2]
[425805958,1781914245000,-1520.53530786,0.0003297,2]
[425805960,1781914245000,-500.0,0.00032999,120]
[425805959,1781914245000,-500.0,0.00032986,2]
[425805961,1781914245000,-500.0,0.00032999,120]
[425805966,1781914245000,-300.0,0.00032999,10]
[425805965,1781914245000,-500.0,0.00032999,120]
[425805963,1781914245000,-298.54,0.00032999,30]
[425805994,1781914245000,-18268.28,0.00033,2]
[425805969,1781914245000,-500.0,0.00032999,7]
[425805989,1781914245000,-22499.98,0.00033,2]
[425806012,1781914245000,-22500.0,0.00033,2]
[425806010,1781914245000,-9999.98,0.00033,2]
[425806011,1781914245000,-10000.0,0.00033,2]
[425806014,1781914245000,-22500.0,0.00033,2]
[425806016,1781914245000,-12500.0,0.00033,2]
[425806017,1781914245000,-15000.0,0.00033,2]
[425806013,1781914245000,-12500.0,0.00033,2]
[425806018,1781914245000,-22499.98,0.00033,2]
[425806020,1781914245000,-12500.0,0.00033,2]
[425806019,1781914245000,-22500.0,0.00033,2]
[425806021,1781914245000,-22499.99,0.00033,2]
[425806024,1781914245000,-15000.0,0.00033,2]
[425806023,1781914245000,-154.57854751,0.00033,7]
[425806025,1781914245000,-15000.0,0.00033,2]
[425806027,1781914245000,-18500.53840235,0.00033,2]
[425806026,1781914245000,-15000.0,0.00033,2]
[425805988,1781914245000,-12499.98,0.00033,2]
[425806009,1781914245000,-12499.97,0.00033,2]
[425806007,1781914245000,-9999.98,0.00033,2]
[425806015,1781914245000,-15000.0,0.00033,2]
[425806001,1781914245000,-22500.0,0.00033,2]
[425805986,1781914245000,-12499.98,0.00033,2]
[425805987,1781914245000,-22499.99,0.00033,2]
[425805991,1781914245000,-22499.99,0.00033,2]
[425805993,1781914245000,-12500.0,0.00033,2]
[425805990,1781914245000,-9999.99,0.00033,2]
[425805992,1781914245000,-15000.0,0.00033,2]
[425806008,1781914245000,-22499.98,0.00033,2]
[425805996,1781914245000,-22499.99,0.00033,2]
[425805997,1781914245000,-12499.99,0.00033,2]
[425805995,1781914245000,-10000.0,0.00033,2]
[425806002,1781914245000,-15000.0,0.00033,2]
[425806003,1781914245000,-4178.15,0.00033,2]
[425806006,1781914245000,-12499.98,0.00033,2]
[425806005,1781914245000,-15000.0,0.00033,2]
[425805998,1781914245000,-15000.0,0.00033,2]
[425805999,1781914245000,-12500.0,0.00033,2]
[425806004,1781914245000,-1641.16,0.00033,2]
[425806000,1781914245000,-10000.0,0.00033,2]
[425806022,1781914245000,-12500.0,0.00033,2]
[425806035,1781914246000,-163.39,0.00029132,7]
[425806030,1781914246000,-280.705,0.00033,2]
[425806029,1781914246000,-163.2,0.00024187,2]
[425806032,1781914246000,-162.92,0.0002863,30]
[425806031,1781914246000,-1200.0,0.00026066,2]
[425806033,1781914246000,-160.56,0.0002863,30]
[425806036,1781914246000,-162.92,0.00030136,7]
[425806037,1781914246000,-160.56,0.00030136,30]
[425806034,1781914246000,-163.39,0.00028631,30]
[425806039,1781914246000,-205.84136639,0.000329,6]
[425806045,1781914246000,-509.0,0.00027137,2]
[425806046,1781914246000,-509.0,0.00028396,3]
[425806043,1781914246000,-153.25,0.00024658,2]
[425806044,1781914246000,-153.25,0.00025205,7]
[425806038,1781914246000,-3186.72781983,0.00030833,2]
[425806041,1781914246000,-1502.92639707,0.00033,2]
[425806042,1781914246000,-2068.55779349,0.00033,2]
[425806040,1781914246000,-3718.73659765,0.00033,2]
[425806047,1781914246000,-160.55,0.0002863,2]
[425806049,1781914247000,-137.53075135,0.0002883,30]
[425806048,1781914247000,-160.55,0.0002873,7]
[425806052,1781914318000,-150.0,0.00018286,2]
[425806054,1781914407000,25000.0,0.00012893,3]
[425806055,1781914426000,25000.0,0.00012884,3]
[425806056,1781914444000,25000.0,0.00012875,3]
[425806057,1781914463000,25000.0,0.00012866,3]
[425806058,1781914482000,25000.0,0.00012858,3]
[425806059,1781914528000,-150.0,0.00017111,2]
[425806060,1781914635000,-606.546068,0.00017077,2]
[425806061,1781914689000,-500.0,0.00017639,2]
[425806063,1781914742000,-209.18457855,0.00017638,2]
[425806064,1781914796000,-509.03470054,0.00017638,2]
[425806065,1781914850000,-356.32429038,0.00017637,2]
[425806066,1781914903000,-519.596901,0.00017619,2]
[425806067,1781914956000,-500.0,0.00017637,2]
[425806068,1781915010000,-500.0,0.00017636,2]
[425806071,1781915222000,-249.42700327,0.00017634,2]
[425806072,1781915275000,-500.0,0.00017634,2]
[425806073,1781915277000,25000.0,0.00012893,3]
[425806074,1781915296000,25000.0,0.00012884,3]
[425806075,1781915315000,25000.0,0.00012875,3]
[425806076,1781915328000,-174.59890228,0.00017633,2]
[425806077,1781915334000,25000.0,0.00012866,3]
[425806078,1781915353000,25000.0,0.00012858,3]
[425806080,1781915382000,25000.0,0.00012849,3]
[425806079,1781915382000,-500.0,0.00017633,2]
[425806081,1781915391000,25000.0,0.0001284,3]
[425806082,1781915410000,25000.0,0.00012831,3]
[425806094,1781915435000,-645.51130672,0.00017633,2]
[425806097,1781915436000,-500.0,0.00017633,2]
[425806095,1781915436000,-500.0,0.00017633,2]
[425806096,1781915436000,-500.0,0.00017633,2]
[425806098,1781915437000,-500.0,0.00017633,2]
[425806099,1781915437000,-500.0,0.00017633,2]
[425806100,1781915437000,-74.93626761,0.00017633,2]
[425806102,1781915437000,-283.18050463,0.00017633,2]
[425806101,1781915437000,-425.06373239,0.00017633,2]
[425806116,1781915442000,-216.81949537,0.00017633,2]
[425806117,1781915443000,-500.0,0.00017633,2]
[425806119,1781915443000,-500.0,0.00017633,2]
[425806118,1781915443000,-500.0,0.00017633,2]
[425806122,1781915443000,-500.0,0.00017633,2]
[425806120,1781915443000,-470.28825114,0.00017633,2]
[425806125,1781915443000,-500.0,0.00017633,2]
[425806129,1781915443000,-500.0,0.00017633,2]
[425806121,1781915443000,-500.0,0.00017633,2]
[425806127,1781915443000,-500.0,0.00017633,2]
[425806124,1781915443000,-500.0,0.00017633,2]
[425806126,1781915443000,-500.0,0.00017633,2]
[425806131,1781915443000,-500.0,0.00017633,2]
[425806139,1781915443000,-137.18958191,0.0002,2]
[425806132,1781915443000,-150.0,0.00017725,2]
[425806136,1781915443000,-167.0,0.0002,2]
[425806135,1781915443000,-49.00954662,0.0002,2]
[425806128,1781915443000,-500.0,0.00017633,2]
[425806134,1781915443000,-141.99045338,0.0002,2]
[425806137,1781915443000,-151.0,0.0002,2]
[425806133,1781915443000,-151.0,0.00019399,2]
[425806130,1781915443000,-500.0,0.00017633,2]
[425806138,1781915443000,-3462.2166626,0.0002,2]
[425806145,1781915445000,-242.32390593,0.00021,2]
[425806144,1781915445000,-151.0,0.00021,2]
[425806143,1781915445000,-191.0,0.00021,2]
[425806142,1781915445000,-415.0,0.0002,2]
[425806141,1781915445000,-197.81041809,0.0002,2]
[425806146,1781915650000,-189.0,0.0002,2]
[425806148,1781915663000,-11.0,0.0002,2]
[425806147,1781915663000,-151.0,0.00018,2]
[425806150,1781915868000,-500.0,0.00018224,2]
[425806151,1781916086000,-150.0,0.00017676,2]
[425806152,1781916198000,25000.0,0.00012893,3]
[425806154,1781916227000,25000.0,0.00012884,3]
[425806153,1781916227000,-150.0,0.00017813,2]
[425806155,1781916235000,25000.0,0.00012875,3]
[425806156,1781916255000,25000.0,0.00012866,3]
[425806157,1781916274000,25000.0,0.00012858,3]
[425806158,1781916280000,1199.179,0.00030137,120]
[425806159,1781916293000,25000.0,0.00012849,3]
[425806160,1781916311000,25000.0,0.0001284,3]
[425806161,1781916330000,25000.0,0.00012831,3]
[425806162,1781916349000,25000.0,0.00012822,3]
[425806163,1781916367000,25000.0,0.00012814,3]
[425806164,1781916387000,25000.0,0.00012805,3]
[425806166,1781916404000,-150.0,0.000179,2]
[425806165,1781916404000,-151.0,0.0001785,2]
[425806167,1781916404000,-112.88575354,0.00018163,2]
[425806168,1781916406000,25000.0,0.00012796,3]
[425806169,1781916428000,-387.11424646,0.00018163,2]
[425806170,1781916429000,25000.0,0.00012787,3]
[425806171,1781916443000,25000.0,0.00012778,3]
[425806172,1781916462000,25000.0,0.0001277,3]
[425806173,1781916481000,25000.0,0.00012761,3]
[425806174,1781916500000,25000.0,0.00012752,3]
[425806175,1781916519000,25000.0,0.00012743,3]
[425806176,1781916538000,25000.0,0.00012734,3]
[425806183,1781916636000,-169.92,0.00016033,2]
[425806205,1781916637000,-500.0,0.00018162,2]
[425806206,1781916637000,-500.0,0.00018162,2]
[425806207,1781916637000,-500.0,0.00018162,2]
[425806201,1781916637000,-500.0,0.00018162,2]
[425806202,1781916637000,-500.0,0.00018162,2]
[425806200,1781916637000,-500.0,0.00018162,2]
[425806204,1781916637000,-500.0,0.00018162,2]
[425806199,1781916637000,-381.13048138,0.00018162,2]
[425806188,1781916637000,-92.63682621,0.00018162,2]
[425806196,1781916637000,-500.0,0.00018162,2]
[425806192,1781916637000,-407.36317379,0.00018162,2]
[425806193,1781916637000,-92.63682621,0.00018162,2]
[425806191,1781916637000,-500.0,0.00018162,2]
[425806194,1781916637000,-500.0,0.00018162,2]
[425806190,1781916637000,-500.0,0.00018162,2]
[425806189,1781916637000,-500.0,0.00018162,2]
[425806187,1781916637000,-428.76776636,0.00018162,2]
[425806198,1781916637000,-118.86951862,0.00018162,2]
[425806209,1781916637000,-500.0,0.00018162,2]
[425806216,1781916637000,-500.0,0.00018162,2]
[425806211,1781916637000,-500.0,0.00018162,2]
[425806208,1781916637000,-500.0,0.00018162,2]
[425806228,1781916637000,-629.2009106,0.00018162,2]
[425806227,1781916637000,-500.0,0.00018162,2]
[425806224,1781916637000,-500.0,0.00018162,2]
[425806225,1781916637000,-500.0,0.00018162,2]
[425806226,1781916637000,-500.0,0.00018162,2]
[425806223,1781916637000,-500.0,0.00018162,2]
[425806220,1781916637000,-500.0,0.00018162,2]
[425806222,1781916637000,-500.0,0.00018162,2]
[425806219,1781916637000,-500.0,0.00018162,2]
[425806218,1781916637000,-500.0,0.00018162,2]
[425806214,1781916637000,-500.0,0.00018162,2]
[425806215,1781916637000,-500.0,0.00018162,2]
[425806213,1781916637000,-500.0,0.00018162,2]
[425806210,1781916637000,-500.0,0.00018162,2]
[425806217,1781916637000,-500.0,0.00018162,2]
[425806221,1781916637000,-500.0,0.00018162,2]
[425806212,1781916637000,-500.0,0.00018162,2]
[425806250,1781916638000,-447.0,0.0002,2]
[425806254,1781916638000,-152.0,0.0002,2]
[425806249,1781916638000,-340.0,0.0002,2]
[425806253,1781916638000,-165.0,0.0002,2]
[425806245,1781916638000,-500.0,0.00018955,2]
[425806252,1781916638000,-180.0,0.0002,2]
[425806257,1781916638000,-413.0,0.0002,2]